fUST/lending_fUST_20250222
["ID","MTS","AMOUNT","RATE_DAILY","PERIOD"]
[354042926,1740199841972,-500.0,0.00013945,2]
[354042927,1740199841981,-765.15,0.00013945,2]
[354042928,1740199841990,-2160.5,0.00013945,2]
[354042929,1740199842000,-500.0,0.00013945,2]
[354042930,1740199842009,-597.22,0.00013945,2]
[354042931,1740199842018,-500.0,0.00013945,2]
[354042932,1740199842027,-592.58,0.00013945,2]
[354042933,1740199842036,-500.0,0.00013945,2]
[354042934,1740199842046,-578.8693,0.00013945,2]
[354042935,1740199842056,-500.0,0.00013945,2]
[354042936,1740199842065,-500.0,0.00013945,2]
[354042937,1740199842075,-500.0,0.00013945,2]
[354042938,1740199842085,-500.0,0.00013945,2]
[354042939,1740199842095,-1938.78,0.00013945,2]
[354042940,1740199842105,-500.0,0.00013945,2]
[354042941,1740199842117,-810.0,0.00013945,2]
[354042942,1740199842127,-1114.2377602,0.00013949,2]
[354042943,1740199842136,-12924.89674434,0.00013955,2]
[354042944,1740199842145,-500.0,0.00014027,2]
[354042945,1740199842154,-500.0,0.00014027,2]
[354042946,1740199842163,-500.0,0.00014027,2]
[354042947,1740199842172,-5446.61,0.00014027,2]
[354042948,1740199842182,-500.0,0.00014027,2]
[354042949,1740199842192,-969.35,0.00014027,2]
[354042950,1740199842304,-500.0,0.00014027,2]
[354042951,1740199842316,-765.15,0.00014027,2]
[354042952,1740199842327,-2160.5,0.00014027,2]
[354042953,1740199842337,-500.0,0.00014027,2]
[354042954,1740199842346,-597.22,0.00014027,2]
[354042955,1740199842355,-500.0,0.00014027,2]
[354042956,1740199842365,-592.58,0.00014027,2]
[354042957,1740199842374,-575.1,0.00014027,2]
[354042958,1740199842383,-500.0,0.00014027,2]
[354042959,1740199842392,-500.0,0.00014027,2]
[354042960,1740199842402,-341.18328741,0.00014027,2]
[354042961,1740199842411,-500.0,0.00014027,2]
[354042962,1740199842421,-1938.78,0.00014027,2]
[354042963,1740199842430,-500.0,0.00014027,2]
[354042964,1740199842439,-810.0,0.00014027,2]
[354042965,1740199842449,-217.92424825,0.0001405,2]
[354042966,1740199842458,-500.0,0.00014109,2]
[354042967,1740199842467,-500.0,0.00014109,2]
[354042968,1740199842476,-500.0,0.00014109,2]
[354042969,1740199842486,-5446.61,0.00014109,2]
[354042970,1740199842495,-500.0,0.00014109,2]
[354042971,1740199842505,-969.35,0.00014109,2]
[354042972,1740199842515,-500.0,0.00014109,2]
[354042973,1740199842524,-765.15,0.00014109,2]
[354042974,1740199842533,-2160.5,0.00014109,2]
[354042975,1740199842543,-500.0,0.00014109,2]
[354042976,1740199842552,-597.22,0.00014109,2]
[354042977,1740199842561,-500.0,0.00014109,2]
[354042978,1740199842571,-592.58,0.00014109,2]
[354042979,1740199842581,-500.0,0.00014109,2]
[354042980,1740199842590,-500.0,0.00014109,2]
[354042981,1740199842599,-500.0,0.00014109,2]
[354042982,1740199842609,-1938.78,0.00014109,2]
[354042983,1740199842618,-500.0,0.00014109,2]
[354042984,1740199842628,-810.0,0.00014109,2]
[354042985,1740199842637,-500.0,0.00014191,2]
[354042986,1740199842647,-500.0,0.00014191,2]
[354042987,1740199842657,-500.0,0.00014191,2]
[354042988,1740199842666,-5446.61,0.00014191,2]
[354042989,1740199842675,-500.0,0.00014191,2]
[354042990,1740199842684,-969.35,0.00014191,2]
[354042991,1740199842694,-500.0,0.00014191,2]
[354042992,1740199842703,-765.15,0.00014191,2]
[354042993,1740199842712,-2160.5,0.00014191,2]
[354042994,1740199842722,-500.0,0.00014191,2]
[354042995,1740199842731,-597.22,0.00014191,2]
[354042996,1740199842740,-500.0,0.00014191,2]
[354042997,1740199842750,-592.58,0.00014191,2]
[354042998,1740199842759,-500.0,0.00014191,2]
[354042999,1740199842769,-500.0,0.00014191,2]
[354043000,1740199842778,-500.0,0.00014191,2]
[354043001,1740199842788,-1938.78,0.00014191,2]
[354043002,1740199842797,-500.0,0.00014191,2]
[354043003,1740199842807,-810.0,0.00014191,2]
[354043004,1740199842816,-178.61548184,0.00014256,2]
[354043016,1740199843138,-241.38451816,0.00014256,2]
[354043017,1740199843147,-423.17911499,0.00014273,2]
[354043035,1740199846167,-76.82088501,0.00014273,2]
[354043036,1740199846176,-500.0,0.00014273,2]
[354043037,1740199846187,-350.15383349,0.00014273,2]
[354043040,1740200404009,-150.0,0.00010501,2]
[354043041,1740200405581,-0.68910759,0.00010501,2]
[354043042,1740200629840,218.148058,9.041e-05,2]
[354043044,1740200852140,-159.813251,0.00012689,2]
[354043045,1740200852164,-300.0,0.00012868,2]
[354043046,1740200852187,-4478.6701226,0.00012869,2]
[354043078,1740201032538,-526.7553518,0.00012592,2]
[354043079,1740201032548,-250.0,0.00012592,2]
[354043080,1740201032558,-300.0,0.00012868,2]
[354043081,1740201032568,-20421.3298774,0.00012869,2]
[354043082,1740201032579,-154.0080815,0.00013573,2]
[354043083,1740201032589,-188.92322154,0.00013598,2]
[354043084,1740201032599,-645.93841326,0.00013598,4]
[354043085,1740201032608,-38984.91922843,0.00013598,2]
[354043086,1740201032618,-500.59229328,0.00013673,2]
[354043087,1740201032627,-500.0,0.00013673,2]
[354043088,1740201032636,-500.0,0.00013673,2]
[354043089,1740201032646,-517.94120092,0.00013673,2]
[354043090,1740201032656,-500.0,0.00013673,2]
[354043091,1740201032665,-500.0,0.00013673,2]
[354043092,1740201032675,-500.0,0.00013673,2]
[354043094,1740201032684,-501.92147896,0.00013673,2]
[354043095,1740201032694,-500.0,0.00013673,2]
[354043096,1740201032703,-500.2242057,0.00013673,2]
[354043097,1740201032713,-500.0,0.00013673,2]
[354043098,1740201032722,-500.0,0.00013673,2]
[354043099,1740201032731,-152.10286621,0.0001369,2]
[354043100,1740201032740,-500.0,0.00013697,2]
[354043101,1740201032750,-193.79876572,0.00013697,2]
[354043102,1740201032759,-500.0,0.00013697,2]
[354043103,1740201032768,-500.0,0.00013697,2]
[354043104,1740201032777,-500.0,0.00013697,2]
[354043105,1740201032787,-414.5536639,0.00013697,2]
[354043106,1740201032796,-2054.67921569,0.00013698,5]
[354043107,1740201032805,-501.69768656,0.00013698,2]
[354043108,1740201032814,-500.0,0.00013698,2]
[354043109,1740201032823,-500.0,0.00013698,2]
[354043110,1740201032832,-500.0,0.00013698,2]
[354043111,1740201032842,-500.0,0.00013698,2]
[354043112,1740201032851,-500.0,0.00013698,2]
[354043113,1740201032860,-500.0,0.00013698,2]
[354043114,1740201032869,-500.0,0.00013698,2]
[354043115,1740201032878,-500.0,0.00013698,2]
[354043116,1740201032887,-500.0,0.00013698,2]
[354043117,1740201032896,-500.0,0.00013698,2]
[354043118,1740201032905,-500.0,0.00013698,2]
[354043119,1740201032914,-500.0,0.00013698,2]
[354043120,1740201032924,-500.0,0.00013698,2]
[354043121,1740201032933,-500.0,0.00013698,2]
[354043122,1740201032942,-291.62730782,0.00013698,2]
[354043123,1740201032951,-500.0,0.00013698,2]
[354043124,1740201032960,-500.0,0.00013698,2]
[354043125,1740201032969,-500.0,0.00013698,2]
[354043126,1740201032979,-500.0,0.00013698,2]
[354043127,1740201032988,-500.0,0.00013698,2]
[354043128,1740201032997,-500.0,0.00013698,2]
[354043129,1740201033006,-503.76533332,0.00013698,2]
[354043130,1740201033015,-500.0,0.00013698,2]
[354043131,1740201033024,-151.0,0.00013698,2]
[354043132,1740201033034,-500.0,0.00013698,2]
[354043133,1740201033043,-505.45899023,0.00013698,2]
[354043134,1740201033053,-501.25261264,0.00013698,2]
[354043135,1740201033062,-500.0,0.00013698,2]
[354043136,1740201033071,-500.0,0.00013698,2]
[354043137,1740201033081,-500.0,0.00013698,2]
[354043138,1740201033094,-500.0,0.00013698,2]
[354043139,1740201033104,-151.0,0.00013698,2]
[354043140,1740201033113,-500.0,0.00013698,2]
[354043141,1740201033122,-504.14542125,0.00013698,2]
[354043142,1740201033131,-500.0,0.00013698,2]
[354043143,1740201033141,-151.0,0.00013698,2]
[354043144,1740201033151,-508.04984971,0.00013698,2]
[354043145,1740201033160,-388.01850545,0.00013698,2]
[354043146,1740201033170,-503.15100813,0.00013698,2]
[354043147,1740201033307,-505.8939088,0.00013698,2]
[354043148,1740201033318,-505.600937,0.00013698,2]
[354043149,1740201033328,-500.0,0.00013698,2]
[354043150,1740201033338,-503.57909342,0.00013698,2]
[354043151,1740201033348,-500.0,0.00013698,2]
[354043152,1740201033356,-545.71589291,0.00013698,2]
[354043153,1740201033366,-500.0,0.00013698,2]
[354043154,1740201033376,-509.5898556,0.00013698,2]
[354043155,1740201033385,-500.0,0.00013698,2]
[354043156,1740201033394,-502.47113934,0.00013698,2]
[354043157,1740201033403,-503.40927606,0.00013698,2]
[354043158,1740201033412,-503.98684283,0.00013698,2]
[354043159,1740201033422,-502.8083086,0.00013698,2]
[354043160,1740201033431,-502.60698605,0.00013698,2]
[354043161,1740201033440,-500.0,0.00013698,2]
[354043162,1740201033451,-504.95677659,0.00013698,2]
[354043163,1740201033460,-507.41112716,0.00013698,2]
[354043164,1740201033469,-501.74288815,0.00013698,2]
[354043165,1740201033478,-505.05138929,0.00013698,2]
[354043166,1740201033487,-500.0,0.00013698,2]
[354043167,1740201033497,-500.0,0.00013698,2]
[354043168,1740201033506,-504.80094623,0.00013698,2]
[354043169,1740201033515,-500.0,0.00013698,2]
[354043170,1740201033525,-500.0,0.00013698,2]
[354043171,1740201033534,-500.0,0.00013698,2]
[354043172,1740201033544,-508.46475126,0.00013698,2]
[354043173,1740201033553,-503.90987805,0.00013698,2]
[354043174,1740201033562,-500.0,0.00013698,2]
[354043175,1740201033572,-500.0,0.00013698,2]
[354043176,1740201033581,-504.73830858,0.00013698,2]
[354043177,1740201033590,-505.36597246,0.00013698,2]
[354043178,1740201033600,-500.0,0.00013698,2]
[354043179,1740201033609,-505.54091061,0.00013698,2]
[354043180,1740201033618,-508.80158283,0.00013698,2]
[354043181,1740201033628,-501.66672248,0.00013698,2]
[354043182,1740201033637,-500.0,0.00013698,2]
[354043183,1740201033647,-504.82590818,0.00013698,2]
[354043184,1740201033656,-505.1587973,0.00013698,2]
[354043185,1740201033665,-502.79751058,0.00013698,2]
[354043186,1740201033675,-500.0,0.00013698,2]
[354043187,1740201033684,-503.65128986,0.00013698,2]
[354043188,1740201033693,-500.0,0.00013698,2]
[354043189,1740201033703,-504.24921193,0.00013698,2]
[354043190,1740201033712,-506.62831086,0.00013698,2]
[354043191,1740201033723,-500.0,0.00013698,2]
[354043192,1740201033733,-500.94313567,0.00013698,2]
[354043193,1740201033742,-506.07572752,0.00013698,2]
[354043194,1740201033752,-505.88464529,0.00013698,2]
[354043195,1740201033762,-502.62319587,0.00013698,2]
[354043196,1740201033772,-500.0,0.00013698,2]
[354043197,1740201033781,-503.81392817,0.00013698,2]
[354043198,1740201033791,-500.0,0.00013698,2]
[354043199,1740201033800,-502.60845114,0.00013698,2]
[354043200,1740201033810,-500.0,0.00013698,2]
[354043201,1740201033820,-501.91827352,0.00013698,2]
[354043202,1740201033834,-502.54893236,0.00013698,2]
[354043203,1740201033845,-151.0,0.00013698,2]
[354043204,1740201033854,-503.20512536,0.00013698,2]
[354043205,1740201033864,-502.70753774,0.00013698,2]
[354043206,1740201033874,-501.55792233,0.00013698,2]
[354043207,1740201033884,-506.15363757,0.00013698,2]
[354043208,1740201033894,-500.0,0.00013698,2]
[354043209,1740201033903,-500.0,0.00013698,2]
[354043210,1740201033913,-500.0,0.00013698,2]
[354043211,1740201033922,-501.19319023,0.00013698,2]
[354043212,1740201033932,-504.72655986,0.00013698,2]
[354043213,1740201033942,-504.36453863,0.00013698,2]
[354043214,1740201033952,-500.0,0.00013698,2]
[354043215,1740201033961,-504.54992375,0.00013698,2]
[354043216,1740201033971,-500.0,0.00013698,2]
[354043217,1740201033981,-297.4,0.00013698,2]
[354043218,1740201033991,-500.0,0.00013698,2]
[354043219,1740201034000,-502.94708496,0.00013698,2]
[354043220,1740201034010,-500.0,0.00013698,2]
[354043221,1740201034019,-503.80893015,0.00013698,2]
[354043222,1740201034029,-500.0,0.00013698,2]
[354043223,1740201034038,-506.26660734,0.00013698,2]
[354043224,1740201034048,-505.14376566,0.00013698,2]
[354043225,1740201034058,-505.25237129,0.00013698,2]
[354043226,1740201034068,-500.0,0.00013698,2]
[354043227,1740201034077,-504.67414588,0.00013698,2]
[354043228,1740201034086,-505.5425372,0.00013698,2]
[354043229,1740201034096,-510.9716321,0.00013698,2]
[354043230,1740201034106,-500.0,0.00013698,2]
[354043231,1740201034115,-502.14562629,0.00013698,2]
[354043232,1740201034125,-513.74416277,0.00013698,2]
[354043233,1740201034134,-500.0,0.00013698,2]
[354043234,1740201034144,-502.947694,0.00013698,2]
[354043235,1740201034154,-502.34783474,0.00013698,2]
[354043236,1740201034165,-502.54402938,0.00013698,2]
[354043237,1740201034174,-501.94477126,0.00013698,2]
[354043238,1740201034185,-507.53118664,0.00013698,2]
[354043239,1740201034195,-502.73606524,0.00013698,2]
[354043240,1740201034206,-502.02429456,0.00013698,2]
[354043241,1740201034216,-500.0,0.00013698,2]
[354043242,1740201034225,-501.46906241,0.00013698,2]
[354043243,1740201034235,-500.0,0.00013698,2]
[354043244,1740201034244,-500.0,0.00013698,2]
[354043245,1740201034259,-500.0,0.00013698,2]
[354043246,1740201034269,-502.96813477,0.00013698,2]
[354043247,1740201034278,-505.52236714,0.00013698,2]
[354043248,1740201034288,-358.62296929,0.00013698,2]
[354043249,1740201034299,-500.0,0.00013698,2]
[354043250,1740201034308,-500.0,0.00013698,2]
[354043251,1740201034318,-504.17668774,0.00013698,2]
[354043252,1740201034328,-500.0,0.00013698,2]
[354043253,1740201034339,-505.75068158,0.00013698,2]
[354043254,1740201034348,-500.0,0.00013698,2]
[354043255,1740201034357,-504.72560099,0.00013698,2]
[354043256,1740201034367,-502.47426116,0.00013698,2]
[354043257,1740201034376,-500.0,0.00013698,2]
[354043258,1740201034386,-500.0,0.00013698,2]
[354043259,1740201034396,-500.0,0.00013698,2]
[354043260,1740201034405,-502.50849359,0.00013698,2]
[354043261,1740201034415,-501.27922376,0.00013698,2]
[354043262,1740201034424,-500.0,0.00013698,2]
[354043263,1740201034433,-504.2371343,0.00013698,2]
[354043264,1740201034444,-151.0,0.00013698,2]
[354043265,1740201034453,-500.0,0.00013698,2]
[354043266,1740201034463,-506.04845521,0.00013698,2]
[354043267,1740201034472,-500.59686918,0.00013698,2]
[354043268,1740201034481,-502.76414863,0.00013698,2]
[354043269,1740201034491,-500.0,0.00013698,2]
[354043270,1740201034500,-500.0,0.00013698,2]
[354043271,1740201034510,-500.0,0.00013698,2]
[354043272,1740201034519,-500.0,0.00013698,2]
[354043273,1740201034529,-253.52,0.00013698,2]
[354043274,1740201034539,-501.80573602,0.00013698,2]
[354043275,1740201034548,-500.0,0.00013698,2]
[354043276,1740201034558,-550.35107339,0.00013698,2]
[354043277,1740201034567,-500.0,0.00013698,2]
[354043278,1740201034577,-505.00973067,0.00013698,2]
[354043279,1740201034586,-501.42887234,0.00013698,2]
[354043280,1740201034596,-504.3420254,0.00013698,2]
[354043281,1740201034612,-500.0,0.00013698,2]
[354043282,1740201034627,-501.8690157,0.00013698,2]
[354043283,1740201034637,-500.0,0.00013698,2]
[354043284,1740201034647,-500.0,0.00013698,2]
[354043285,1740201034658,-500.0,0.00013698,2]
[354043286,1740201034667,-506.16142753,0.00013698,2]
[354043287,1740201034678,-500.0,0.00013698,2]
[354043288,1740201034688,-504.82998668,0.00013698,2]
[354043289,1740201034698,-594.00627862,0.00013698,2]
[354043290,1740201034708,-515.2795441,0.00013698,2]
[354043291,1740201034717,-500.0,0.00013698,2]
[354043292,1740201034728,-542.40248694,0.00013698,2]
[354043293,1740201034738,-500.0,0.00013698,2]
[354043294,1740201034748,-508.68477546,0.00013698,2]
[354043295,1740201034758,-502.68406049,0.00013698,2]
[354043296,1740201034767,-500.0,0.00013698,2]
[354043297,1740201034777,-505.97237244,0.00013698,2]
[354043298,1740201034787,-500.0,0.00013698,2]
[354043299,1740201034796,-503.71787793,0.00013698,2]
[354043300,1740201034806,-465.55536418,0.00013698,2]
[354043301,1740201034822,-151.0,0.00013698,2]
[354043302,1740201034832,-500.0,0.00013698,2]
[354043303,1740201034842,-151.0,0.00013698,2]
[354043304,1740201034852,-500.0,0.00013698,2]
[354043305,1740201034863,-500.0,0.00013698,2]
[354043306,1740201034872,-506.8891854,0.00013698,2]
[354043307,1740201034881,-500.0,0.00013698,2]
[354043308,1740201034890,-508.08877755,0.00013698,2]
[354043309,1740201034900,-500.0,0.00013698,2]
[354043310,1740201034909,-508.53550964,0.00013698,2]
[354043311,1740201034919,-500.99962877,0.00013698,2]
[354043312,1740201034928,-503.87761064,0.00013698,2]
[354043313,1740201034938,-502.2235999,0.00013698,2]
[354043314,1740201034947,-542.43,0.00013698,2]
[354043315,1740201034957,-500.0,0.00013698,2]
[354043316,1740201034967,-500.0,0.00013698,2]
[354043317,1740201034977,-500.0,0.00013698,2]
[354043318,1740201034986,-500.0,0.00013698,2]
[354043319,1740201034997,-504.85506135,0.00013698,2]
[354043320,1740201035007,-500.0,0.00013698,2]
[354043321,1740201035016,-500.0,0.00013698,2]
[354043322,1740201035026,-500.0,0.00013698,2]
[354043323,1740201035036,-200.0,0.00013698,2]
[354043324,1740201035046,-500.0,0.00013698,2]
[354043325,1740201035055,-500.0,0.00013698,2]
[354043326,1740201035065,-521.26531222,0.00013698,2]
[354043327,1740201035075,-151.0,0.00013698,2]
[354043328,1740201035084,-500.0,0.00013698,2]
[354043329,1740201035094,-502.90623338,0.00013698,2]
[354043330,1740201035104,-500.0,0.00013698,2]
[354043331,1740201035114,-500.0,0.00013698,2]
[354043332,1740201035123,-500.0,0.00013698,2]
[354043333,1740201035132,-500.0,0.00013698,2]
[354043334,1740201035143,-500.0,0.00013698,2]
[354043335,1740201035153,-500.0,0.00013698,2]
[354043336,1740201035163,-500.0,0.00013698,2]
[354043337,1740201035173,-506.71728477,0.00013698,2]
[354043338,1740201035183,-502.79603949,0.00013698,2]
[354043339,1740201035193,-500.0,0.00013698,2]
[354043340,1740201035203,-500.0,0.00013698,2]
[354043341,1740201035213,-500.0,0.00013698,2]
[354043342,1740201035223,-500.0,0.00013698,2]
[354043343,1740201035233,-506.17423434,0.00013698,2]
[354043344,1740201035243,-505.98349439,0.00013698,2]
[354043345,1740201035256,-404.30737073,0.00013698,2]
[354043346,1740201035265,-500.0,0.00013698,2]
[354043347,1740201035275,-503.8143556,0.00013698,2]
[354043348,1740201035285,-505.8924663,0.00013698,2]
[354043349,1740201035405,-507.93800319,0.00013698,2]
[354043350,1740201035416,-500.0,0.00013698,2]
[354043351,1740201035426,-501.38232307,0.00013698,2]
[354043352,1740201035435,-500.0,0.00013698,2]
[354043353,1740201035444,-500.0,0.00013698,2]
[354043354,1740201035453,-500.0,0.00013698,2]
[354043355,1740201035463,-151.408061,0.00013698,2]
[354043356,1740201035472,-500.0,0.00013698,2]
[354043357,1740201035481,-570.12996265,0.00013698,2]
[354043358,1740201035490,-504.15303726,0.00013698,2]
[354043359,1740201035500,-500.0,0.00013698,2]
[354043360,1740201035510,-500.0,0.00013698,2]
[354043361,1740201035519,-500.0,0.00013698,2]
[354043362,1740201035528,-500.0,0.00013698,2]
[354043363,1740201035538,-500.0,0.00013698,2]
[354043364,1740201035547,-500.0,0.00013698,2]
[354043365,1740201035558,-500.0,0.00013698,2]
[354043366,1740201035567,-500.0,0.00013698,2]
[354043367,1740201035577,-500.0,0.00013698,2]
[354043368,1740201035586,-500.0,0.00013698,2]
[354043369,1740201035596,-500.0,0.00013698,2]
[354043370,1740201035605,-500.0,0.00013698,2]
[354043371,1740201035615,-500.0,0.00013698,2]
[354043372,1740201035624,-511.07528168,0.00013698,2]
[354043373,1740201035634,-510.61121653,0.00013698,2]
[354043374,1740201035643,-500.0,0.00013698,2]
[354043375,1740201035652,-500.0,0.00013698,2]
[354043376,1740201035661,-502.71597334,0.00013698,2]
[354043377,1740201035671,-507.92689481,0.00013698,2]
[354043378,1740201035680,-500.0,0.00013698,2]
[354043379,1740201035689,-503.78959497,0.00013698,2]
[354043380,1740201035698,-500.0,0.00013698,2]
[354043381,1740201035707,-632.85370645,0.00013698,2]
[354043382,1740201035717,-506.08275929,0.00013698,2]
[354043383,1740201035726,-175.59193,0.00013698,2]
[354043384,1740201035736,-175.59193,0.00013698,2]
[354043385,1740201035745,-510.61999081,0.00013698,2]
[354043386,1740201035755,-175.59193,0.00013698,2]
[354043387,1740201035764,-175.59193,0.00013698,2]
[354043388,1740201035774,-500.0,0.00013698,2]
[354043389,1740201035783,-501.85167437,0.00013698,2]
[354043390,1740201035793,-510.11808852,0.00013698,2]
[354043391,1740201035803,-2576.24,0.00013698,2]
[354043392,1740201035812,-505.62615419,0.00013698,2]
[354043393,1740201035822,-500.0,0.00013698,2]
[354043394,1740201035832,-500.0,0.00013698,2]
[354043395,1740201035841,-500.0,0.00013698,2]
[354043396,1740201035851,-529.55,0.00013698,2]
[354043397,1740201035860,-500.0,0.00013698,2]
[354043398,1740201035870,-500.0,0.00013698,2]
[354043399,1740201035879,-500.0,0.00013698,2]
[354043400,1740201035889,-507.02329536,0.00013698,2]
[354043401,1740201035898,-500.0,0.00013698,2]
[354043402,1740201035907,-504.54884011,0.00013698,2]
[354043403,1740201035917,-505.90987491,0.00013698,2]
[354043404,1740201035926,-500.0,0.00013698,2]
[354043405,1740201035936,-506.88848601,0.00013698,2]
[354043406,1740201035945,-580.74569914,0.00013698,2]
[354043407,1740201035955,-503.05263159,0.00013698,2]
[354043408,1740201035964,-506.29819405,0.00013698,2]
[354043409,1740201035973,-505.02453337,0.00013698,2]
[354043410,1740201035982,-503.63190441,0.00013698,2]
[354043411,1740201035992,-500.0,0.00013698,2]
[354043412,1740201036001,-156.122582,0.00013698,2]
[354043413,1740201036010,-156.122582,0.00013698,2]
[354043414,1740201036020,-156.122582,0.00013698,2]
[354043415,1740201036029,-500.0,0.00013698,2]
[354043416,1740201036039,-500.0,0.00013698,2]
[354043417,1740201036048,-156.122582,0.00013698,2]
[354043418,1740201036057,-503.58630828,0.00013698,2]
[354043419,1740201036066,-156.122582,0.00013698,2]
[354043420,1740201036076,-156.122582,0.00013698,2]
[354043421,1740201036085,-500.0,0.00013698,2]
[354043422,1740201036094,-507.81686279,0.00013698,2]
[354043423,1740201036103,-508.07703002,0.00013698,2]
[354043424,1740201036113,-500.0,0.00013698,2]
[354043425,1740201036123,-500.0,0.00013698,2]
[354043426,1740201036132,-500.89693919,0.00013698,2]
[354043427,1740201036143,-500.0,0.00013698,2]
[354043428,1740201036154,-500.0,0.00013698,2]
[354043429,1740201036164,-500.0,0.00013698,2]
[354043430,1740201036175,-151.0,0.00013698,2]
[354043431,1740201036186,-506.14578192,0.00013698,2]
[354043432,1740201036196,-151.0,0.00013698,2]
[354043433,1740201036206,-500.0,0.00013698,2]
[354043434,1740201036217,-151.0,0.00013698,2]
[354043435,1740201036229,-500.0,0.00013698,2]
[354043436,1740201036239,-500.0,0.00013698,2]
[354043437,1740201036249,-500.0,0.00013698,2]
[354043438,1740201036266,-502.46432922,0.00013698,2]
[354043439,1740201036276,-500.0,0.00013698,2]
[354043440,1740201036285,-523.2202936,0.00013698,2]
[354043441,1740201036295,-381.2569572,0.00013698,2]
[354043442,1740201036311,-512.05734213,0.00013698,2]
[354043443,1740201036327,-501.19361037,0.00013698,2]
[354043444,1740201036342,-151.0,0.00013698,2]
[354043445,1740201036357,-504.07863677,0.00013698,2]
[354043446,1740201036368,-151.0,0.00013698,2]
[354043447,1740201036381,-281.589882,0.00013698,2]
[354043448,1740201036395,-7483.23,0.00013698,2]
[354043449,1740201036408,-500.0,0.00013698,2]
[354043450,1740201036421,-500.0,0.00013698,2]
[354043451,1740201036435,-266.86162742,0.00013698,2]
[354043452,1740201036448,-503.50545359,0.00013698,2]
[354043453,1740201036463,-500.0,0.00013698,2]
[354043454,1740201036478,-151.0,0.00013698,2]
[354043455,1740201036491,-151.87261,0.00013698,2]
[354043456,1740201036503,-1284.57,0.00013698,2]
[354043457,1740201036516,-500.0,0.00013698,2]
[354043458,1740201036527,-500.0,0.00013698,2]
[354043459,1740201036540,-501.9237883,0.00013698,2]
[354043460,1740201036553,-500.0,0.00013698,2]
[354043461,1740201036565,-500.0,0.00013698,2]
[354043462,1740201036579,-500.0,0.00013698,2]
[354043463,1740201036590,-500.0,0.00013698,2]
[354043464,1740201036602,-500.0,0.00013698,2]
[354043465,1740201036614,-500.0,0.00013698,2]
[354043466,1740201036626,-501.77196525,0.00013698,2]
[354043467,1740201036639,-500.0,0.00013698,2]
[354043468,1740201036653,-500.0,0.00013698,2]
[354043469,1740201036665,-502.18330478,0.00013698,2]
[354043470,1740201036678,-503.65652544,0.00013698,2]
[354043471,1740201036691,-500.0,0.00013698,2]
[354043472,1740201036706,-502.73977516,0.00013698,2]
[354043473,1740201036719,-500.0,0.00013698,2]
[354043474,1740201036730,-450.90721686,0.00013698,2]
[354043475,1740201036741,-503.94685675,0.00013698,2]
[354043476,1740201036752,-500.0,0.00013698,2]
[354043477,1740201036764,-500.0,0.00013698,2]
[354043478,1740201036777,-155.144524,0.00013698,2]
[354043479,1740201036790,-155.144524,0.00013698,2]
[354043480,1740201036802,-155.144524,0.00013698,2]
[354043481,1740201036812,-661.96,0.00013698,2]
[354043482,1740201036823,-152.788416,0.00013698,2]
[354043483,1740201036835,-152.788416,0.00013698,2]
[354043484,1740201036849,-152.788416,0.00013698,2]
[354043485,1740201036860,-155.144524,0.00013698,2]
[354043486,1740201036871,-155.144524,0.00013698,2]
[354043487,1740201036882,-155.144524,0.00013698,2]
[354043488,1740201036892,-765.57,0.00013698,2]